[Event "Late-Titled-Tuesday-Blitz-March-26-2024"]
[Site "Chess.com"]
[Date "2024.03.26"]
[Round "4"]
[White "MusicCityMaster"]
[Black "TemploVillamarin"]
[Result "1/2-1/2"]
[WhiteElo "2445"]
[BlackElo "2224"]
[TimeControl "180+1"]
[EndTime "14:42:07 PDT"]
[Termination "Game drawn by repetition"]

1. e4 {[%clk 0:02:45.4]} 1... d5 {[%clk 0:02:59.6]} 2. exd5 {[%clk 0:02:45.2]}
2... Qxd5 {[%clk 0:02:59.5]} 3. Nc3 {[%clk 0:02:46]} 3... Qa5 {[%clk 0:02:59.6]}
4. d4 {[%clk 0:02:44]} 4... Nf6 {[%clk 0:02:57.6]} 5. Nf3 {[%clk 0:02:44.4]}
5... Nc6 {[%clk 0:02:57.8]} 6. Bb5 {[%clk 0:02:37.6]} 6... Nd5 {[%clk
0:02:56.4]} 7. Bxc6+ {[%clk 0:02:29.7]} 7... bxc6 {[%clk 0:02:24.6]} 8. Bd2
{[%clk 0:02:17.6]} 8... Nxc3 {[%clk 0:02:24.4]} 9. Bxc3 {[%clk 0:02:16.4]} 9...
Qd5 {[%clk 0:02:24.9]} 10. O-O {[%clk 0:02:14.9]} 10... Bg4 {[%clk 0:02:25.2]}
11. Re1 {[%clk 0:02:10.2]} 11... Bxf3 {[%clk 0:02:22.4]} 12. Qxf3 {[%clk
0:02:11.1]} 12... Qxf3 {[%clk 0:02:22.5]} 13. gxf3 {[%clk 0:02:11.6]} 13... e6
{[%clk 0:02:23.2]} 14. Kg2 {[%clk 0:02:10.6]} 14... O-O-O {[%clk 0:02:20.6]} 15.
b4 {[%clk 0:02:06.7]} 15... Rd5 {[%clk 0:02:19.5]} 16. Re4 {[%clk 0:02:03.1]}
16... Bd6 {[%clk 0:02:17.6]} 17. a3 {[%clk 0:01:56.4]} 17... Be7 {[%clk
0:01:49.8]} 18. Bd2 {[%clk 0:01:52.2]} 18... Rhd8 {[%clk 0:01:45.9]} 19. Be3
{[%clk 0:01:52.5]} 19... Bf6 {[%clk 0:01:36.4]} 20. c3 {[%clk 0:01:49]} 20... a5
{[%clk 0:01:30.7]} 21. Rb1 {[%clk 0:01:33]} 21... axb4 {[%clk 0:01:28.4]} 22.
Rxb4 {[%clk 0:01:27.1]} 22... Ra5 {[%clk 0:01:27.1]} 23. a4 {[%clk 0:01:27.1]}
23... Kd7 {[%clk 0:01:27.8]} 24. Bf4 {[%clk 0:01:24.1]} 24... Rda8 {[%clk
0:01:21.1]} 25. Rb7 {[%clk 0:01:17.4]} 25... R5a7 {[%clk 0:01:19.7]} 26. Rxa7
{[%clk 0:01:12.6]} 26... Rxa7 {[%clk 0:01:19.9]} 27. Be5 {[%clk 0:01:10.1]}
27... Bxe5 {[%clk 0:01:08.3]} 28. dxe5 {[%clk 0:01:10.2]} 28... Ra5 {[%clk
0:00:58.2]} 29. Rd4+ {[%clk 0:01:05.8]} 29... Ke7 {[%clk 0:00:56.9]} 30. Rc4
{[%clk 0:01:03.7]} 30... Kd7 {[%clk 0:00:56.4]} 31. f4 {[%clk 0:01:03.6]} 31...
c5 {[%clk 0:00:53.5]} 32. Kf3 {[%clk 0:01:03.6]} 32... Kc6 {[%clk 0:00:50.4]}
33. Ke3 {[%clk 0:01:02.2]} 33... Kd5 {[%clk 0:00:44.9]} 34. Re4 {[%clk
0:01:01.1]} 34... f5 {[%clk 0:00:44.3]} 35. exf6 {[%clk 0:00:59.1]} 35... gxf6
{[%clk 0:00:45.2]} 36. f5 {[%clk 0:00:51.9]} 36... e5 {[%clk 0:00:24.2]} 37. Rh4
{[%clk 0:00:50.2]} 37... h5 {[%clk 0:00:20.3]} 38. Rxh5 {[%clk 0:00:46.7]} 38...
Rxa4 {[%clk 0:00:20.7]} 39. Rh7 {[%clk 0:00:46.4]} 39... Re4+ {[%clk 0:00:18]}
40. Kd3 {[%clk 0:00:43.6]} 40... c4+ {[%clk 0:00:18]} 41. Kd2 {[%clk 0:00:43.5]}
41... Rf4 {[%clk 0:00:17.8]} 42. Ke3 {[%clk 0:00:43.4]} 42... Rxf5 {[%clk
0:00:13.8]} 43. h4 {[%clk 0:00:41.2]} 43... Rf4 {[%clk 0:00:12.3]} 44. h5 {[%clk
0:00:40.9]} 44... Rh4 {[%clk 0:00:12.8]} 45. h6 {[%clk 0:00:41.3]} 45... f5
{[%clk 0:00:13.4]} 46. Rh8 {[%clk 0:00:37.4]} 46... Rh3+ {[%clk 0:00:13.2]} 47.
Ke2 {[%clk 0:00:36.7]} 47... Ke4 {[%clk 0:00:13]} 48. h7 {[%clk 0:00:35.4]}
48... Rh2 {[%clk 0:00:10.3]} 49. Kf1 {[%clk 0:00:30.1]} 49... Kf3 {[%clk
0:00:08.8]} 50. Kg1 {[%clk 0:00:30.6]} 50... Rh5 {[%clk 0:00:09.3]} 51. Rf8
{[%clk 0:00:27]} 51... Rxh7 {[%clk 0:00:09.4]} 52. Rxf5+ {[%clk 0:00:27.7]}
52... Ke4 {[%clk 0:00:10.3]} 53. Rf6 {[%clk 0:00:26.8]} 53... Kd3 {[%clk
0:00:10.6]} 54. Re6 {[%clk 0:00:26.1]} 54... e4 {[%clk 0:00:10.9]} 55. Kg2
{[%clk 0:00:26]} 55... Rg7+ {[%clk 0:00:10.7]} 56. Kf1 {[%clk 0:00:25.3]} 56...
Rg4 {[%clk 0:00:10.5]} 57. Rc6 {[%clk 0:00:24.8]} 57... Kxc3 {[%clk 0:00:10.6]}
58. Ke2 {[%clk 0:00:23.7]} 58... Kd4 {[%clk 0:00:09.8]} 59. Rxc7 {[%clk
0:00:23.7]} 59... Rg5 {[%clk 0:00:10.3]} 60. Rd7+ {[%clk 0:00:22.3]} 60... Rd5
{[%clk 0:00:10.6]} 61. Ra7 {[%clk 0:00:21]} 61... c3 {[%clk 0:00:10.2]} 62. Ra4+
{[%clk 0:00:21.1]} 62... Ke5 {[%clk 0:00:10.7]} 63. Rc4 {[%clk 0:00:20.8]} 63...
Rd2+ {[%clk 0:00:10.6]} 64. Ke1 {[%clk 0:00:20.1]} 64... Rd3 {[%clk 0:00:09]}
65. Ke2 {[%clk 0:00:20.7]} 65... Kf4 {[%clk 0:00:09.4]} 66. Rc8 {[%clk
0:00:18.8]} 66... Rd2+ {[%clk 0:00:09.2]} 67. Ke1 {[%clk 0:00:18.8]} 67... Ra2
{[%clk 0:00:09.8]} 68. Rxc3 {[%clk 0:00:18.3]} 68... Ra1+ {[%clk 0:00:10.4]} 69.
Ke2 {[%clk 0:00:18.4]} 69... Ra2+ {[%clk 0:00:11]} 70. Ke1 {[%clk 0:00:18.9]}
70... Ra1+ {[%clk 0:00:11.6]} 71. Ke2 {[%clk 0:00:19.3]} 71... Ra2+ {[%clk
0:00:12.2]} 72. Kf1 {[%clk 0:00:19.9]} 72... Ra1+ {[%clk 0:00:12.6]} 73. Kg2
{[%clk 0:00:20.5]} 73... Ra2 {[%clk 0:00:13.2]} 74. Rg3 {[%clk 0:00:20]} 74...
Rb2 {[%clk 0:00:12.5]} 75. Rg8 {[%clk 0:00:20.1]} 75... e3 {[%clk 0:00:11.8]}
76. Rf8+ {[%clk 0:00:20.5]} 76... Kg4 {[%clk 0:00:12.4]} 77. Rg8+ {[%clk
0:00:20.4]} 77... Kf4 {[%clk 0:00:13]} 78. Rf8+ {[%clk 0:00:18.7]} 78... Kg4
{[%clk 0:00:13.5]} 79. Rg8+ {[%clk 0:00:18.9]} 79... Kf4 {[%clk 0:00:14.2]}
1/2-1/2

[Event "Late-Titled-Tuesday-Blitz-March-26-2024"]
[Site "Chess.com"]
[Date "2024.03.26"]
[Round "4"]
[White "YoreDea"]
[Black "dretch"]
[Result "1/2-1/2"]
[WhiteElo "2570"]
[BlackElo "2855"]
[TimeControl "180+1"]
[EndTime "14:42:09 PDT"]
[Termination "Game drawn by repetition"]

1. d4 {[%clk 0:02:58.5]} 1... d5 {[%clk 0:02:52.6]} 2. c4 {[%clk 0:02:57.6]}
2... c6 {[%clk 0:02:52.4]} 3. e3 {[%clk 0:02:55.9]} 3... Bf5 {[%clk 0:02:52.1]}
4. Bd3 {[%clk 0:02:55.5]} 4... Bxd3 {[%clk 0:02:51.7]} 5. Qxd3 {[%clk
0:02:56.1]} 5... e6 {[%clk 0:02:45.7]} 6. Nc3 {[%clk 0:02:55.5]} 6... Nf6 {[%clk
0:02:45.2]} 7. Nf3 {[%clk 0:02:54.1]} 7... Nbd7 {[%clk 0:02:39.8]} 8. O-O {[%clk
0:02:54]} 8... Bb4 {[%clk 0:02:39.7]} 9. Bd2 {[%clk 0:02:51.4]} 9... a5 {[%clk
0:02:39.4]} 10. a3 {[%clk 0:02:49.8]} 10... Be7 {[%clk 0:02:35.5]} 11. e4 {[%clk
0:02:49.7]} 11... Nc5 {[%clk 0:02:34.5]} 12. dxc5 {[%clk 0:02:47.5]} 12... dxe4
{[%clk 0:02:34.3]} 13. Qxd8+ {[%clk 0:02:40.5]} 13... Rxd8 {[%clk 0:02:35.2]}
14. Nxe4 {[%clk 0:02:37.5]} 14... Nxe4 {[%clk 0:02:34.2]} 15. Bxa5 {[%clk
0:02:37.8]} 15... Ra8 {[%clk 0:02:29.5]} 16. Bb6 {[%clk 0:02:33]} 16... Bxc5
{[%clk 0:01:44.3]} 17. Bxc5 {[%clk 0:02:31.5]} 17... Nxc5 {[%clk 0:01:45.2]} 18.
b4 {[%clk 0:02:30.4]} 18... Na4 {[%clk 0:01:40.3]} 19. Rfd1 {[%clk 0:02:16.7]}
19... Ke7 {[%clk 0:01:37.8]} 20. Kf1 {[%clk 0:02:08.1]} 20... Rhd8 {[%clk
0:01:30]} 21. c5 {[%clk 0:02:01.3]} 21... Nb2 {[%clk 0:00:48.6]} 22. Rdb1 {[%clk
0:01:40.4]} 22... Nc4 {[%clk 0:00:40.1]} 23. a4 {[%clk 0:01:36.8]} 23... Nd2+
{[%clk 0:00:37.1]} 24. Nxd2 {[%clk 0:01:36.4]} 24... Rxd2 {[%clk 0:00:38]} 25.
b5 {[%clk 0:01:35]} 25... Rc2 {[%clk 0:00:27.9]} 26. bxc6 {[%clk 0:01:29]} 26...
bxc6 {[%clk 0:00:27.9]} 27. Rb7+ {[%clk 0:01:29.2]} 27... Kf6 {[%clk 0:00:25.5]}
28. a5 {[%clk 0:01:25.4]} 28... Rxc5 {[%clk 0:00:05.3]} 29. a6 {[%clk
0:01:25.4]} 29... Rb5 {[%clk 0:00:05.9]} 30. Rc7 {[%clk 0:01:16.8]} 30... Rb6
{[%clk 0:00:06.2]} 31. a7 {[%clk 0:01:15.4]} 31... e5 {[%clk 0:00:06.7]} 32. Rc1
{[%clk 0:01:07.1]} 32... Ke6 {[%clk 0:00:04.2]} 33. R1xc6+ {[%clk 0:01:05.3]}
33... Rxc6 {[%clk 0:00:05.1]} 34. Rxc6+ {[%clk 0:01:05.6]} 34... Kd7 {[%clk
0:00:05.6]} 35. Ra6 {[%clk 0:01:04.7]} 35... Kc7 {[%clk 0:00:06]} 36. Ra5 {[%clk
0:00:59.1]} 36... f6 {[%clk 0:00:05.5]} 37. g4 {[%clk 0:00:47.6]} 37... Kb6
{[%clk 0:00:05.3]} 38. Rd5 {[%clk 0:00:28.2]} 38... Rxa7 {[%clk 0:00:06]} 39. g5
{[%clk 0:00:28.8]} 39... Kc6 {[%clk 0:00:05.6]} 40. Rd8 {[%clk 0:00:24.8]} 40...
fxg5 {[%clk 0:00:05.9]} 41. Kg2 {[%clk 0:00:25.1]} 41... Rd7 {[%clk 0:00:04.8]}
42. Rg8 {[%clk 0:00:20.7]} 42... Kd6 {[%clk 0:00:04.7]} 43. Kg3 {[%clk
0:00:21.3]} 43... Ke6 {[%clk 0:00:04.7]} 44. f3 {[%clk 0:00:21.7]} 44... h6
{[%clk 0:00:05]} 45. Kg4 {[%clk 0:00:21.5]} 45... Kf7 {[%clk 0:00:05]} 46. Ra8
{[%clk 0:00:21.1]} 46... Rd4+ {[%clk 0:00:05.1]} 47. Kg3 {[%clk 0:00:21]} 47...
e4 {[%clk 0:00:05.5]} 48. fxe4 {[%clk 0:00:19.1]} 48... Rxe4 {[%clk 0:00:05.9]}
49. Ra3 {[%clk 0:00:19]} 49... Kf6 {[%clk 0:00:05.8]} 50. h3 {[%clk 0:00:19.5]}
50... Re5 {[%clk 0:00:05.3]} 51. Rf3+ {[%clk 0:00:19.1]} 51... Kg6 {[%clk
0:00:05.3]} 52. Ra3 {[%clk 0:00:20]} 52... Re6 {[%clk 0:00:05.5]} 53. Rb3 {[%clk
0:00:20]} 53... h5 {[%clk 0:00:05.5]} 54. Rc3 {[%clk 0:00:20.6]} 54... Kh6
{[%clk 0:00:05.5]} 55. Rd3 {[%clk 0:00:19.9]} 55... Re4 {[%clk 0:00:05.4]} 56.
Rd6+ {[%clk 0:00:19.6]} 56... g6 {[%clk 0:00:05.9]} 57. Rd7 {[%clk 0:00:17.4]}
57... g4 {[%clk 0:00:05.5]} 58. hxg4 {[%clk 0:00:12.9]} 58... Rxg4+ {[%clk
0:00:05.6]} 59. Kh3 {[%clk 0:00:13.3]} 59... Ra4 {[%clk 0:00:06.5]} 60. Rd3
{[%clk 0:00:13.3]} 60... Ra6 {[%clk 0:00:04]} 61. Rc3 {[%clk 0:00:13.3]} 61...
g5 {[%clk 0:00:04.4]} 62. Rd3 {[%clk 0:00:12.2]} 62... Kg6 {[%clk 0:00:04.9]}
63. Rb3 {[%clk 0:00:11.7]} 63... h4 {[%clk 0:00:05.2]} 64. Rb4 {[%clk
0:00:11.2]} 64... Kh5 {[%clk 0:00:05.2]} 65. Rb5 {[%clk 0:00:09.7]} 65... Ra3+
{[%clk 0:00:05.3]} 66. Kh2 {[%clk 0:00:10.2]} 66... Kg4 {[%clk 0:00:05.4]} 67.
Rb4+ {[%clk 0:00:10.4]} 67... Kh5 {[%clk 0:00:05.9]} 68. Rb5 {[%clk 0:00:10.8]}
68... Rd3 {[%clk 0:00:06.1]} 69. Rc5 {[%clk 0:00:10.4]} 69... Ra3 {[%clk
0:00:06.3]} 70. Rb5 {[%clk 0:00:07.3]} 1/2-1/2

[Event "Late-Titled-Tuesday-Blitz-March-26-2024"]
[Site "Chess.com"]
[Date "2024.03.26"]
[Round "4"]
[White "subham777"]
[Black "CarlosjPineror"]
[Result "1-0"]
[WhiteElo "2553"]
[BlackElo "2715"]
[TimeControl "180+1"]
[EndTime "14:42:09 PDT"]
[Termination "subham777 won by checkmate"]

1. e4 {[%clk 0:03:00.9]} 1... c5 {[%clk 0:02:58.4]} 2. Nf3 {[%clk 0:03:00.4]}
2... e6 {[%clk 0:02:58.9]} 3. g3 {[%clk 0:03:00.4]} 3... Nc6 {[%clk 0:02:57.6]}
4. Bg2 {[%clk 0:02:57.2]} 4... Nf6 {[%clk 0:02:58]} 5. d3 {[%clk 0:02:46.5]}
5... d5 {[%clk 0:02:57.5]} 6. exd5 {[%clk 0:02:46.3]} 6... exd5 {[%clk
0:02:57.4]} 7. O-O {[%clk 0:02:46.8]} 7... h6 {[%clk 0:02:58.1]} 8. Re1+ {[%clk
0:02:44.5]} 8... Be7 {[%clk 0:02:58.6]} 9. d4 {[%clk 0:02:44]} 9... O-O {[%clk
0:02:55.2]} 10. c3 {[%clk 0:02:34.5]} 10... Bf5 {[%clk 0:02:50.3]} 11. Bf4
{[%clk 0:02:28.3]} 11... Qb6 {[%clk 0:02:35.3]} 12. Qb3 {[%clk 0:02:14.9]} 12...
Qxb3 {[%clk 0:02:17.1]} 13. axb3 {[%clk 0:02:12.2]} 13... Rfe8 {[%clk 0:02:18]}
14. Ne5 {[%clk 0:01:41.9]} 14... cxd4 {[%clk 0:02:14.8]} 15. Nxc6 {[%clk
0:01:38.4]} 15... bxc6 {[%clk 0:02:14.1]} 16. cxd4 {[%clk 0:01:38.4]} 16... Bb4
{[%clk 0:01:57.6]} 17. Nc3 {[%clk 0:01:36.1]} 17... Rxe1+ {[%clk 0:01:48.6]} 18.
Rxe1 {[%clk 0:01:34]} 18... Bc2 {[%clk 0:01:49.4]} 19. Be5 {[%clk 0:01:23.1]}
19... Nd7 {[%clk 0:01:45.9]} 20. Ra1 {[%clk 0:01:15.2]} 20... Bxb3 {[%clk
0:01:44]} 21. Ra6 {[%clk 0:01:09.9]} 21... Nb6 {[%clk 0:01:32.6]} 22. Bf1 {[%clk
0:00:53.7]} 22... Bc4 {[%clk 0:01:25]} 23. Bxc4 {[%clk 0:00:49.3]} 23... Nxc4
{[%clk 0:01:24.4]} 24. Rxc6 {[%clk 0:00:46.1]} 24... Bxc3 {[%clk 0:01:21.8]} 25.
bxc3 {[%clk 0:00:44.2]} 25... a5 {[%clk 0:01:22.5]} 26. Bd6 {[%clk 0:00:25]}
26... a4 {[%clk 0:01:21.6]} 27. Bb4 {[%clk 0:00:21.3]} 27... a3 {[%clk
0:01:19.1]} 28. Bxa3 {[%clk 0:00:21.1]} 28... Nxa3 {[%clk 0:01:10]} 29. Rd6
{[%clk 0:00:20.3]} 29... Ra5 {[%clk 0:01:09]} 30. Rd8+ {[%clk 0:00:20]} 30...
Kh7 {[%clk 0:01:08.8]} 31. Rd7 {[%clk 0:00:19.4]} 31... f6 {[%clk 0:01:08.5]}
32. Kg2 {[%clk 0:00:16.8]} 32... h5 {[%clk 0:01:08]} 33. h4 {[%clk 0:00:16.3]}
33... Kg6 {[%clk 0:01:08.1]} 34. Kh3 {[%clk 0:00:15.9]} 34... Nc4 {[%clk
0:01:05.7]} 35. f3 {[%clk 0:00:16]} 35... Nd2 {[%clk 0:01:04.7]} 36. Kg2 {[%clk
0:00:12.7]} 36... Nb1 {[%clk 0:00:54]} 37. Rc7 {[%clk 0:00:11.9]} 37... Ra3
{[%clk 0:00:53.5]} 38. c4 {[%clk 0:00:12]} 38... Rc3 {[%clk 0:00:46.7]} 39. c5
{[%clk 0:00:09.9]} 39... Rc4 {[%clk 0:00:36.9]} 40. Rd7 {[%clk 0:00:08.7]} 40...
Rxd4 {[%clk 0:00:36]} 41. c6 {[%clk 0:00:08.5]} 41... Nc3 {[%clk 0:00:34.6]} 42.
c7 {[%clk 0:00:08.2]} 42... Rc4 {[%clk 0:00:34.5]} 43. f4 {[%clk 0:00:06.6]}
43... Ne4 {[%clk 0:00:31.1]} 44. Kf3 {[%clk 0:00:03.5]} 44... Rc3+ {[%clk
0:00:31]} 45. Kg2 {[%clk 0:00:02.6]} 45... Rxg3+ {[%clk 0:00:30.4]} 46. Kf1
{[%clk 0:00:01.5]} 46... Rc3 {[%clk 0:00:31.3]} 47. Ke2 {[%clk 0:00:02]} 47...
Kf5 {[%clk 0:00:28.6]} 48. Rxd5+ {[%clk 0:00:01.7]} 48... Kxf4 {[%clk
0:00:28.9]} 49. Rd7 {[%clk 0:00:01.5]} 49... g5 {[%clk 0:00:27.6]} 50. hxg5
{[%clk 0:00:02.4]} 50... fxg5 {[%clk 0:00:28.5]} 51. Rh7 {[%clk 0:00:02.3]}
51... g4 {[%clk 0:00:26.9]} 52. Rf7+ {[%clk 0:00:03]} 52... Kg3 {[%clk
0:00:27.1]} 53. Re7 {[%clk 0:00:03.7]} 53... Nf2 {[%clk 0:00:20.1]} 54. Re3+
{[%clk 0:00:02.8]} 54... Rxe3+ {[%clk 0:00:16.6]} 55. Kxe3 {[%clk 0:00:03.7]}
55... h4 {[%clk 0:00:11.5]} 56. c8=Q {[%clk 0:00:03.9]} 56... h3 {[%clk
0:00:12.4]} 57. Qc7+ {[%clk 0:00:04.3]} 57... Kg2 {[%clk 0:00:12.4]} 58. Qc2
{[%clk 0:00:05]} 58... g3 {[%clk 0:00:12.1]} 59. Qe2 {[%clk 0:00:05]} 59... h2
{[%clk 0:00:12]} 60. Qf3+ {[%clk 0:00:05.2]} 60... Kh3 {[%clk 0:00:10.6]} 61.
Qh5+ {[%clk 0:00:03.4]} 61... Kg2 {[%clk 0:00:11.2]} 62. Qf3+ {[%clk 0:00:03.1]}
62... Kg1 {[%clk 0:00:11.8]} 63. Qxg3+ {[%clk 0:00:02.4]} 63... Kh1 {[%clk
0:00:12.6]} 64. Qf3+ {[%clk 0:00:02.4]} 64... Kg1 {[%clk 0:00:12.9]} 65. Qxf2+
{[%clk 0:00:03.1]} 65... Kh1 {[%clk 0:00:13.4]} 66. Qf1# {[%clk 0:00:03.9]} 1-0

[Event "Late-Titled-Tuesday-Blitz-March-26-2024"]
[Site "Chess.com"]
[Date "2024.03.26"]
[Round "4"]
[White "Mikhail_Bryakin"]
[Black "zverr1"]
[Result "1-0"]
[WhiteElo "2857"]
[BlackElo "2563"]
[TimeControl "180+1"]
[EndTime "14:42:10 PDT"]
[Termination "Mikhail_Bryakin won by checkmate"]

1. b3 {[%clk 0:02:54.9]} 1... e5 {[%clk 0:02:59.4]} 2. Bb2 {[%clk 0:02:53.9]}
2... Nc6 {[%clk 0:03:00]} 3. e3 {[%clk 0:02:53.5]} 3... d5 {[%clk 0:03:00.3]} 4.
Bb5 {[%clk 0:02:53]} 4... Ne7 {[%clk 0:03:00.7]} 5. Nf3 {[%clk 0:02:51.5]} 5...
e4 {[%clk 0:03:00.3]} 6. Nd4 {[%clk 0:02:51.6]} 6... Bd7 {[%clk 0:02:58.9]} 7.
c4 {[%clk 0:02:48.4]} 7... Nxd4 {[%clk 0:02:48.5]} 8. Bxd7+ {[%clk 0:02:46.9]}
8... Qxd7 {[%clk 0:02:48.3]} 9. Bxd4 {[%clk 0:02:47.4]} 9... Nc6 {[%clk
0:02:44.4]} 10. Bb2 {[%clk 0:02:35.2]} 10... d4 {[%clk 0:02:28.7]} 11. exd4
{[%clk 0:02:31.1]} 11... Nxd4 {[%clk 0:02:28.8]} 12. O-O {[%clk 0:02:30.6]}
12... O-O-O {[%clk 0:02:17.3]} 13. Nc3 {[%clk 0:02:27]} 13... f5 {[%clk
0:02:13.7]} 14. d3 {[%clk 0:02:25.7]} 14... exd3 {[%clk 0:01:44.7]} 15. Qxd3
{[%clk 0:02:26.6]} 15... c6 {[%clk 0:01:36.6]} 16. Rad1 {[%clk 0:02:14.5]} 16...
Be7 {[%clk 0:01:31.6]} 17. Nd5 {[%clk 0:02:06]} 17... cxd5 {[%clk 0:01:14.8]}
18. Bxd4 {[%clk 0:02:04.8]} 18... dxc4 {[%clk 0:00:57.1]} 19. Qxc4+ {[%clk
0:02:03.7]} 19... Qc6 {[%clk 0:00:51.9]} 20. Qf7 {[%clk 0:01:54.5]} 20... Qe8
{[%clk 0:00:47.6]} 21. Qxf5+ {[%clk 0:01:47]} 21... Kb8 {[%clk 0:00:47.5]} 22.
Rfe1 {[%clk 0:01:38.5]} 22... Qf8 {[%clk 0:00:31.9]} 23. Qxf8 {[%clk 0:01:30.6]}
23... Bxf8 {[%clk 0:00:32.8]} 24. Bxa7+ {[%clk 0:01:30.5]} 24... Kc8 {[%clk
0:00:33.6]} 25. Rc1+ {[%clk 0:01:23.6]} 25... Kd7 {[%clk 0:00:33.8]} 26. Bb6
{[%clk 0:01:19.9]} 26... Rc8 {[%clk 0:00:31]} 27. Rxc8 {[%clk 0:01:14.6]} 27...
Kxc8 {[%clk 0:00:31.9]} 28. Re8+ {[%clk 0:01:14.1]} 28... Kd7 {[%clk 0:00:32.3]}
29. Ra8 {[%clk 0:01:12.3]} 29... Kc6 {[%clk 0:00:28.8]} 30. Bd4 {[%clk
0:01:10.9]} 30... b6 {[%clk 0:00:27]} 31. Kf1 {[%clk 0:01:07.4]} 31... Kb7
{[%clk 0:00:26.2]} 32. Re8 {[%clk 0:01:07.4]} 32... Kc7 {[%clk 0:00:26.4]} 33.
Ke2 {[%clk 0:01:06.4]} 33... h5 {[%clk 0:00:26.3]} 34. Kd3 {[%clk 0:01:05.9]}
34... Kd7 {[%clk 0:00:24]} 35. Ra8 {[%clk 0:01:05.8]} 35... Kc6 {[%clk
0:00:24.1]} 36. a4 {[%clk 0:01:05.5]} 36... Kb7 {[%clk 0:00:23.6]} 37. Re8
{[%clk 0:01:05.3]} 37... Kc6 {[%clk 0:00:24.5]} 38. f4 {[%clk 0:01:05]} 38...
Kd7 {[%clk 0:00:24.1]} 39. Ra8 {[%clk 0:01:04.8]} 39... Kc6 {[%clk 0:00:25]} 40.
f5 {[%clk 0:01:05.1]} 40... Kb7 {[%clk 0:00:24.7]} 41. Re8 {[%clk 0:01:05.3]}
41... Kc6 {[%clk 0:00:25.6]} 42. Kc4 {[%clk 0:01:02.5]} 42... Kd7 {[%clk
0:00:25]} 43. Ra8 {[%clk 0:01:02.7]} 43... Kc6 {[%clk 0:00:25.9]} 44. b4 {[%clk
0:01:01.9]} 44... Kb7 {[%clk 0:00:25.6]} 45. Re8 {[%clk 0:01:02.3]} 45... Kc6
{[%clk 0:00:26.5]} 46. b5+ {[%clk 0:01:01.1]} 46... Kb7 {[%clk 0:00:25.1]} 47.
Kd5 {[%clk 0:01:00.1]} 47... Kc7 {[%clk 0:00:24.6]} 48. Be5+ {[%clk 0:00:59.4]}
48... Kd7 {[%clk 0:00:24.5]} 49. Ra8 {[%clk 0:00:59.9]} 49... h4 {[%clk
0:00:23.7]} 50. a5 {[%clk 0:00:55.7]} 50... bxa5 {[%clk 0:00:23.4]} 51. b6
{[%clk 0:00:56.3]} 51... Rh6 {[%clk 0:00:23.4]} 52. b7 {[%clk 0:00:52.2]} 52...
Bd6 {[%clk 0:00:23.6]} 53. Bxd6 {[%clk 0:00:48.5]} 53... Rxd6+ {[%clk
0:00:24.5]} 54. Ke5 {[%clk 0:00:49]} 54... Rb6 {[%clk 0:00:23.2]} 55. b8=Q
{[%clk 0:00:49.5]} 55... Rxb8 {[%clk 0:00:24.1]} 56. Rxb8 {[%clk 0:00:50.1]}
56... Kc6 {[%clk 0:00:24.6]} 57. Rg8 {[%clk 0:00:49.5]} 57... Kb5 {[%clk
0:00:23.9]} 58. Rxg7 {[%clk 0:00:50]} 58... a4 {[%clk 0:00:24.5]} 59. Ra7 {[%clk
0:00:50.3]} 59... Kb6 {[%clk 0:00:23.6]} 60. Rxa4 {[%clk 0:00:50]} 60... Kc5
{[%clk 0:00:24.3]} 61. Rxh4 {[%clk 0:00:50.4]} 61... Kb5 {[%clk 0:00:25.2]} 62.
Rd4 {[%clk 0:00:50.7]} 62... Kc5 {[%clk 0:00:26.1]} 63. f6 {[%clk 0:00:50.7]}
63... Kb5 {[%clk 0:00:27]} 64. f7 {[%clk 0:00:51.1]} 64... Kc5 {[%clk
0:00:27.9]} 65. Rd5+ {[%clk 0:00:51.2]} 65... Kc6 {[%clk 0:00:28.8]} 66. f8=Q
{[%clk 0:00:50.7]} 66... Kb6 {[%clk 0:00:29.7]} 67. Qf6+ {[%clk 0:00:50.8]}
67... Kb7 {[%clk 0:00:30.6]} 68. Rd7+ {[%clk 0:00:50.7]} 68... Kb8 {[%clk
0:00:31.5]} 69. Re7 {[%clk 0:00:50.9]} 69... Ka8 {[%clk 0:00:31.3]} 70. h4
{[%clk 0:00:51.3]} 70... Kb8 {[%clk 0:00:32.2]} 71. h5 {[%clk 0:00:51.7]} 71...
Ka8 {[%clk 0:00:33.1]} 72. h6 {[%clk 0:00:52.2]} 72... Kb8 {[%clk 0:00:34]} 73.
h7 {[%clk 0:00:52.6]} 73... Ka8 {[%clk 0:00:34.9]} 74. g3 {[%clk 0:00:52.9]}
74... Kb8 {[%clk 0:00:35.8]} 75. g4 {[%clk 0:00:53.3]} 75... Ka8 {[%clk
0:00:36.7]} 76. g5 {[%clk 0:00:53.8]} 76... Kb8 {[%clk 0:00:37.6]} 77. g6 {[%clk
0:00:54.3]} 77... Ka8 {[%clk 0:00:38.5]} 78. g7 {[%clk 0:00:54.8]} 78... Kb8
{[%clk 0:00:39.4]} 79. Qf8# {[%clk 0:00:03.7]} 1-0